fUSD/lending_fUSD_20241107
["ID","MTS","AMOUNT","RATE_DAILY","PERIOD"]
[341543847,1730971187426,-500.0,0.00030958,4]
[341543848,1730971187464,-500.0,0.00030958,4]
[341543849,1730971187496,-512.97,0.00030958,4]
[341543850,1730971187528,-628.76157518,0.00030958,4]
[341543851,1730971187560,-500.0,0.00030958,4]
[341543852,1730971187592,-657.21,0.00030958,4]
[341543853,1730971187625,-935.04,0.00030958,4]
[341543854,1730971187657,-500.0,0.00030958,4]
[341543855,1730971187692,-421.56097751,0.00030958,4]
[341543856,1730971187728,-595.19839405,0.00030958,4]
[341543857,1730971187760,-519.06,0.00030958,4]
[341543858,1730971187794,-500.0,0.00030958,4]
[341543859,1730971187827,-1447.91,0.00030958,4]
[341543860,1730971187859,-500.0,0.00030958,4]
[341543861,1730971187890,-291.78264978,0.00030958,4]
[341543862,1730971187922,-500.0,0.00030958,4]
[341543863,1730971187956,-500.0,0.00030958,4]
[341543864,1730971187989,-741.6,0.00030958,4]
[341543865,1730971188022,-566.35,0.00030958,4]
[341543866,1730971188056,-1679.11,0.00030958,4]
[341543867,1730971188090,-557.0,0.00030958,4]
[341543868,1730971188126,-453.85389478,0.00030958,4]
[341543869,1730971188165,-500.0,0.00030958,4]
[341543870,1730971188203,-1728.46,0.00030958,4]
[341543871,1730971188240,-500.0,0.00030958,4]
[341543872,1730971188277,-637.54,0.00030958,4]
[341543873,1730971188317,-500.0,0.00030958,4]
[341543874,1730971188357,-500.0,0.00030958,4]
[341543875,1730971188461,-500.0,0.00030958,4]
[341543876,1730971188498,-526.82,0.00030958,4]
[341543877,1730971188532,-500.0,0.00030958,4]
[341543878,1730971188565,-523.29,0.00030958,4]
[341543879,1730971188598,-445.64334669,0.00030958,4]
[341543880,1730971188631,-500.0,0.00030958,4]
[341543881,1730971188664,-607.39,0.00030958,4]
[341543882,1730971188696,-1111.38,0.00030958,4]
[341543883,1730971188728,-500.0,0.00030958,4]
[341543884,1730971188761,-500.0,0.00030958,4]
[341543885,1730971188795,-1230.57,0.00030958,4]
[341543886,1730971188827,-500.0,0.00030958,4]
[341543887,1730971188859,-500.0,0.00030958,4]
[341543888,1730971188892,-648.65,0.00030958,4]
[341543889,1730971188926,-921.78,0.00030958,4]
[341543890,1730971188963,-500.0,0.00030958,4]
[341543891,1730971188997,-896.22,0.00030958,4]
[341543892,1730971189030,-514.19,0.00030958,4]
[341543893,1730971189063,-500.0,0.00030958,4]
[341543894,1730971189097,-1162.82,0.00030958,4]
[341543895,1730971189132,-500.0,0.00030958,4]
[341543896,1730971189169,-978.58,0.00030958,4]
[341543897,1730971189202,-1322.61,0.00030958,4]
[341543898,1730971189236,-574.33,0.00030958,4]
[341543899,1730971189269,-500.0,0.00030958,4]
[341543900,1730971189302,-1387.23,0.00030958,4]
[341543901,1730971189336,-546.96,0.00030958,4]
[341543902,1730971189371,-500.0,0.00030958,4]
[341543903,1730971189405,-941.3,0.00030958,4]
[341543904,1730971189440,-505.11,0.00030958,4]
[341543905,1730971189472,-1716.07,0.00030958,4]
[341543906,1730971189504,-595.44,0.00030958,4]
[341543907,1730971189536,-691.74,0.00030958,4]
[341543908,1730971189567,-500.0,0.00030958,4]
[341543909,1730971189601,-500.0,0.00030958,4]
[341543910,1730971189633,-1075.73,0.00030958,4]
[341543911,1730971189666,-500.0,0.00030958,4]
[341543912,1730971189697,-500.0,0.00030958,4]
[341543913,1730971189729,-1022.46,0.00030958,4]
[341543914,1730971189760,-964.98,0.00030958,4]
[341543915,1730971189792,-500.0,0.00030958,4]
[341543916,1730971189823,-500.0,0.00030958,4]
[341543917,1730971189853,-525.75,0.00030958,4]
[341543918,1730971189883,-500.0,0.00030958,4]
[341543919,1730971189914,-1126.55352444,0.00030958,4]
[341543920,1730971191834,-300.0,0.00019725,2]
[341543921,1730971193691,150.0,0.00018123,2]
[341543936,1730971199207,158.32,0.00015342,2]
[341543937,1730971215190,204.78413377,0.00018123,2]
[341543938,1730971258089,160.00346233,0.00025999,30]
[341543939,1730971266859,-1410.03,0.00027683,2]
[341543940,1730971266896,-160.447,0.0002805,4]
[341543941,1730971266932,-160.605,0.0002871,5]
[341543942,1730971266969,-1920.29,0.00029193,2]
[341543943,1730971267003,-250.0,0.00029344,2]
[341543944,1730971267039,-1755.628,0.00029344,2]
[341543950,1730971322216,-300.0,0.00019725,2]
[341543951,1730971446765,-300.0,0.00019725,2]
[341543952,1730971502730,-300.0,0.00019725,2]
[341543953,1730971508491,56291.13740866,0.00016,2]
[341543954,1730971508515,55000.0,0.00016,2]
[341543955,1730971508538,2803866.41743222,0.00016,2]
[341543956,1730971508564,87800.0,0.00016,2]
[341543957,1730971508585,477449.26710885,0.00016,2]
[341543959,1730971523092,-11500.0,0.0002,2]
[341543960,1730971562790,-300.0,0.0001892,2]
[341543961,1730971564355,-6537.93578404,0.0001892,2]
[341543963,1730971574545,-3962.72760018,0.00019351,2]
[341543964,1730971622343,-300.0,0.00019725,2]
[341543965,1730971629099,-420.0,0.00021484,2]
[341543966,1730971629118,-221.0,0.00023401,2]
[341543967,1730971629137,-154.46,0.00023475,2]
[341543968,1730971629156,-594.264057,0.00024807,2]
[341543969,1730971629175,-500.0,0.00024932,2]
[341543970,1730971629194,-1805.63363213,0.00025,2]
[341543971,1730971685929,22550.73289115,0.00015,2]
[341543972,1730971685954,35767.75972497,0.00015,2]
[341543980,1730971746411,-19913.77963963,0.00022,2]
[341543981,1730971746431,-6514.41838037,0.00025,2]
[341543982,1730971756102,-3079.03078294,0.00025,2]
[341543983,1730971756123,-1528.3989766,0.00025,2]
[341543991,1730971807603,156.36,0.00015342,2]
[341544006,1730971831864,-500.0,0.000274,7]
[341544007,1730971831873,-161.94,0.000284,2]
[341544008,1730971831882,-3193.8,0.00028403,2]
[341544009,1730971831891,-200.0,0.00028423,2]
[341544010,1730971831900,-456.65,0.00028661,120]
[341544011,1730971831909,-2796.54,0.0002876,2]
[341544012,1730971831919,-183.08,0.0002876,2]
[341544013,1730971831928,-183.08,0.00028775,2]
[341544014,1730971831937,-150.99,0.00028775,2]
[341544015,1730971831946,-183.08,0.0002879,2]
[341544016,1730971831955,-183.08,0.00028805,2]
[341544017,1730971831963,-183.08,0.0002882,2]
[341544018,1730971831973,-183.08,0.00028836,2]
[341544019,1730971831983,-183.08,0.00028851,2]
[341544020,1730971831992,-183.08,0.00028866,2]
[341544021,1730971832001,-183.08,0.00028881,2]
[341544022,1730971832010,-183.08,0.00028896,2]
[341544023,1730971832019,-164.56,0.00028905,2]
[341544024,1730971832028,-183.08,0.00028911,2]
[341544025,1730971832037,-183.08,0.00028926,2]
[341544026,1730971832047,-183.08,0.00028941,2]
[341544027,1730971832055,-183.08,0.00028957,2]
[341544028,1730971832064,-183.08,0.00028972,2]
[341544029,1730971832073,-183.08,0.00028987,2]
[341544030,1730971832082,-183.08,0.00029002,2]
[341544031,1730971832091,-183.08,0.00029017,2]
[341544032,1730971832101,-183.08,0.00029032,2]
[341544033,1730971832110,-183.08,0.00029047,2]
[341544034,1730971832119,-1000.0,0.00029148,2]
[341544035,1730971832128,-3076.04,0.00029148,2]
[341544036,1730971832138,-2961.81,0.00029253,2]
[341544037,1730971832147,-651.99,0.00029253,2]
[341544038,1730971832156,-250.0,0.00029253,2]
[341544039,1730971832165,-250.0,0.00029279,2]
[341544040,1730971832174,-200.0,0.00029344,7]
[341544041,1730971832183,-155.23,0.00029427,2]
[341544042,1730971832193,-237.26,0.00029472,30]
[341544043,1730971832202,-160.469,0.0002955,2]
[341544044,1730971832210,-200.0,0.000296,2]
[341544046,1730971832219,-296.38,0.00029603,2]
[341544047,1730971832230,-1920.29,0.00029662,2]
[341544048,1730971832239,-13614.0,0.0002986,2]
[341544049,1730971832248,-1253.0,0.0002986,2]
[341544050,1730971832257,-300.0,0.000299,10]
[341544051,1730971832266,-7606.307,0.00029936,2]
[341544052,1730971832275,-4507.61556033,0.00029936,15]
[341544053,1730971832284,-1410.03,0.00029947,2]
[341544054,1730971832293,-151.0,0.0003,120]
[341544055,1730971832302,-5000.0,0.0003,5]
[341544056,1730971832310,-482.18,0.00030026,3]
[341544057,1730971832320,-1070.37044303,0.00030035,15]
[341544058,1730971832330,-500.0,0.00030036,2]
[341544059,1730971832339,-1000.0,0.00030036,2]
[341544060,1730971832348,-100000.0,0.00030036,2]
[341544061,1730971832358,-2641.0407,0.00030036,2]
[341544062,1730971832367,-2950.0209,0.00030036,2]
[341544063,1730971832377,-381.2359,0.00030036,2]
[341544064,1730971832386,-1000.0,0.00030036,2]
[341544065,1730971832396,-2500.0,0.00030036,2]
[341544066,1730971832405,-177.31544993,0.00030036,2]
[341544067,1730971832414,-1920.29,0.00030131,2]
[341544068,1730971832423,-500.0,0.00030135,2]
[341544069,1730971832432,-500.0,0.00030135,2]
[341544070,1730971832441,-500.0,0.00030135,2]
[341544071,1730971832452,-500.0,0.00030135,2]
[341544072,1730971832462,-500.0,0.00030135,2]
[341544073,1730971832471,-500.0,0.00030135,2]
[341544074,1730971832481,-500.0,0.00030135,2]
[341544075,1730971832490,-500.0,0.00030135,2]
[341544076,1730971832503,-500.0,0.00030135,2]
[341544077,1730971832512,-500.0,0.00030135,2]
[341544078,1730971832521,-500.0,0.00030135,2]
[341544079,1730971832530,-500.0,0.00030135,2]
[341544080,1730971832539,-500.0,0.00030135,2]
[341544081,1730971832548,-500.0,0.00030135,2]
[341544082,1730971832556,-500.0,0.00030135,2]
[341544083,1730971832565,-478.60416437,0.00030135,2]
[341544084,1730971832575,-500.0,0.00030135,2]
[341544085,1730971832584,-369.18496049,0.00030135,2]
[341544086,1730971832593,-7123.85699302,0.00030136,2]
[341544087,1730971832601,-188.65418848,0.00030136,2]
[341544088,1730971832611,-200.0,0.00030136,4]
[341544089,1730971832620,-500.0,0.00030136,4]
[341544090,1730971832629,-638.00904402,0.00030136,4]
[341544091,1730971832638,-500.0,0.00030136,4]
[341544092,1730971832648,-500.0,0.00030136,4]
[341544093,1730971832891,-500.0,0.00030136,4]
[341544094,1730971832901,-633.13,0.00030136,4]
[341544095,1730971832910,-500.0,0.00030136,4]
[341544096,1730971832919,-500.0,0.00030136,4]
[341544097,1730971832928,-500.0,0.00030136,4]
[341544098,1730971832937,-183.22634651,0.00030136,4]
[341544099,1730971832948,-500.0,0.00030136,4]
[341544100,1730971832957,-500.0,0.00030136,4]
[341544101,1730971832966,-500.0,0.00030136,4]
[341544102,1730971832980,-500.0,0.00030136,4]
[341544103,1730971832990,-500.0,0.00030136,4]
[341544104,1730971832999,-500.0,0.00030136,4]
[341544105,1730971833008,-500.0,0.00030136,4]
[341544106,1730971833018,-500.0,0.00030136,4]
[341544107,1730971833028,-500.0,0.00030136,4]
[341544108,1730971833038,-500.0,0.00030136,4]
[341544109,1730971833049,-500.0,0.00030136,4]
[341544110,1730971833059,-500.0,0.00030136,4]
[341544111,1730971833069,-679.62,0.00030136,4]
[341544112,1730971833078,-500.0,0.00030136,4]
[341544113,1730971833089,-500.0,0.00030136,4]
[341544114,1730971833099,-500.0,0.00030136,4]
[341544115,1730971833109,-500.0,0.00030136,4]
[341544116,1730971833119,-500.0,0.00030136,4]
[341544117,1730971833128,-500.0,0.00030136,4]
[341544118,1730971833138,-500.0,0.00030136,4]
[341544119,1730971833148,-500.0,0.00030136,4]
[341544120,1730971833158,-300.0,0.00030136,4]
[341544121,1730971833167,-500.0,0.00030136,4]
[341544122,1730971833177,-500.0,0.00030136,4]
[341544123,1730971833187,-500.0,0.00030136,4]
[341544124,1730971833198,-500.0,0.00030136,4]
[341544125,1730971833208,-500.0,0.00030136,4]
[341544126,1730971833217,-478.14908785,0.00030136,4]
[341544127,1730971833227,-500.0,0.00030136,4]
[341544128,1730971833237,-500.0,0.00030136,4]
[341544129,1730971833247,-500.0,0.00030136,4]
[341544130,1730971833256,-500.0,0.00030136,4]
[341544131,1730971833266,-1203.43,0.00030136,4]
[341544132,1730971833275,-613.18164146,0.00030136,4]
[341544133,1730971833285,-500.0,0.00030136,4]
[341544134,1730971833295,-500.0,0.00030136,4]
[341544135,1730971833304,-500.0,0.00030136,4]
[341544136,1730971833314,-500.0,0.00030136,4]
[341544137,1730971833323,-674.89,0.00030136,4]
[341544138,1730971833333,-500.0,0.00030136,4]
[341544139,1730971833343,-618.0,0.00030136,4]
[341544140,1730971833353,-500.0,0.00030136,4]
[341544141,1730971833364,-945.04,0.00030136,4]
[341544142,1730971833374,-568.56,0.00030136,4]
[341544143,1730971833385,-500.0,0.00030136,4]
[341544144,1730971833395,-500.0,0.00030136,4]
[341544145,1730971833405,-768.15,0.00030136,4]
[341544146,1730971833415,-500.0,0.00030136,4]
[341544147,1730971833425,-500.0,0.00030136,4]
[341544148,1730971833435,-500.0,0.00030136,4]
[341544149,1730971833445,-500.0,0.00030136,4]
[341544150,1730971833455,-1095.88,0.00030136,4]
[341544151,1730971833465,-500.0,0.00030136,4]
[341544152,1730971833476,-500.0,0.00030136,4]
[341544153,1730971833486,-500.0,0.00030136,4]
[341544154,1730971833496,-500.0,0.00030136,4]
[341544155,1730971833506,-784.42,0.00030136,4]
[341544156,1730971833516,-500.0,0.00030136,4]
[341544157,1730971833526,-500.0,0.00030136,4]
[341544158,1730971833535,-504.66,0.00030136,4]
[341544159,1730971833545,-500.0,0.00030136,4]
[341544160,1730971833555,-798.5,0.00030136,4]
[341544161,1730971833564,-500.0,0.00030136,4]
[341544162,1730971833573,-896.45,0.00030136,4]
[341544163,1730971833583,-500.0,0.00030136,4]
[341544164,1730971833592,-1188.14,0.00030136,4]
[341544165,1730971833601,-500.0,0.00030136,4]
[341544166,1730971833610,-500.0,0.00030136,4]
[341544167,1730971833620,-1411.5,0.00030136,4]
[341544168,1730971833630,-1015.03,0.00030136,4]
[341544169,1730971833639,-500.0,0.00030136,4]
[341544170,1730971833650,-540.54,0.00030136,4]
[341544171,1730971833660,-500.0,0.00030136,4]
[341544172,1730971833670,-500.0,0.00030136,4]
[341544173,1730971833679,-1089.99,0.00030136,4]
[341544174,1730971833689,-500.0,0.00030136,4]
[341544175,1730971833698,-500.0,0.00030136,4]
[341544176,1730971833708,-795.62,0.00030136,4]
[341544177,1730971833718,-624.92,0.00030136,4]
[341544178,1730971833728,-500.0,0.00030136,4]
[341544179,1730971833738,-690.8,0.00030136,4]
[341544180,1730971833747,-500.0,0.00030136,4]
[341544181,1730971833757,-815.48,0.00030136,4]
[341544182,1730971833768,-894.5,0.00030136,4]
[341544183,1730971833778,-500.0,0.00030136,4]
[341544184,1730971833787,-985.68,0.00030136,4]
[341544185,1730971833797,-500.0,0.00030136,4]
[341544186,1730971833806,-500.0,0.00030136,4]
[341544187,1730971833815,-624.76,0.00030136,4]
[341544188,1730971833825,-500.0,0.00030136,4]
[341544189,1730971833835,-500.0,0.00030136,4]
[341544190,1730971833844,-804.15,0.00030136,4]
[341544191,1730971833853,-500.0,0.00030136,4]
[341544192,1730971833863,-500.0,0.00030136,4]
[341544193,1730971833873,-1261.85,0.00030136,4]
[341544194,1730971833882,-500.0,0.00030136,4]
[341544195,1730971833892,-502.79,0.00030136,4]
[341544196,1730971833903,-500.0,0.00030136,4]
[341544197,1730971833913,-539.07,0.00030136,4]
[341544198,1730971833922,-593.89,0.00030136,4]
[341544199,1730971833932,-990.34,0.00030136,4]
[341544200,1730971833942,-1371.24,0.00030136,4]
[341544201,1730971833952,-500.0,0.00030136,4]
[341544202,1730971833962,-1090.4,0.00030136,4]
[341544203,1730971833971,-500.0,0.00030136,4]
[341544204,1730971833986,-500.0,0.00030136,4]
[341544205,1730971833996,-531.82,0.00030136,4]
[341544206,1730971834006,-500.0,0.00030136,4]
[341544207,1730971834015,-504.66,0.00030136,4]
[341544208,1730971834026,-500.0,0.00030136,4]
[341544209,1730971834037,-512.79,0.00030136,4]
[341544210,1730971834047,-511.07,0.00030136,4]
[341544211,1730971834057,-965.87,0.00030136,4]
[341544212,1730971834067,-1348.18,0.00030136,4]
[341544213,1730971834077,-808.39,0.00030136,4]
[341544214,1730971834087,-500.0,0.00030136,4]
[341544215,1730971834096,-500.0,0.00030136,4]
[341544216,1730971834106,-474.92744383,0.00030136,4]
[341544217,1730971834116,-500.0,0.00030136,4]
[341544218,1730971834126,-510.76,0.00030136,4]
[341544219,1730971834135,-976.66,0.00030136,4]
[341544220,1730971834144,-1081.92,0.00030136,4]
[341544221,1730971834154,-500.0,0.00030136,4]
[341544222,1730971834163,-500.0,0.00030136,4]
[341544223,1730971834172,-500.0,0.00030136,4]
[341544224,1730971834182,-1800.22,0.00030136,4]
[341544225,1730971834191,-500.0,0.00030136,4]
[341544226,1730971834201,-500.0,0.00030136,4]
[341544227,1730971834210,-500.0,0.00030136,4]
[341544228,1730971834220,-1322.69,0.00030136,4]
[341544229,1730971834230,-1039.05,0.00030136,4]
[341544230,1730971834240,-500.0,0.00030136,4]
[341544231,1730971834249,-500.0,0.00030136,4]
[341544232,1730971834259,-982.46,0.00030136,4]
[341544233,1730971834268,-500.0,0.00030136,4]
[341544234,1730971834278,-500.0,0.00030136,4]
[341544235,1730971834287,-500.0,0.00030136,4]
[341544236,1730971834297,-500.0,0.00030136,4]
[341544237,1730971834307,-548.86,0.00030136,4]
[341544238,1730971834316,-500.0,0.00030136,4]
[341544239,1730971834326,-500.0,0.00030136,4]
[341544240,1730971834336,-500.0,0.00030136,4]
[341544241,1730971834345,-500.0,0.00030136,4]
[341544242,1730971834355,-2000.0,0.00030136,4]
[341544243,1730971834366,-500.0,0.00030136,4]
[341544244,1730971834376,-1186.66,0.00030136,4]
[341544245,1730971834385,-500.0,0.00030136,4]
[341544246,1730971834395,-500.0,0.00030136,4]
[341544247,1730971834405,-843.04,0.00030136,4]
[341544248,1730971834415,-500.0,0.00030136,4]
[341544249,1730971834425,-500.0,0.00030136,4]
[341544250,1730971834435,-756.82,0.00030136,4]
[341544251,1730971834445,-500.0,0.00030136,4]
[341544252,1730971834454,-500.0,0.00030136,4]
[341544253,1730971834464,-500.0,0.00030136,4]
[341544254,1730971834476,-622.93,0.00030136,4]
[341544255,1730971834487,-500.0,0.00030136,4]
[341544256,1730971834501,-879.48,0.00030136,4]
[341544257,1730971834512,-500.0,0.00030136,4]
[341544258,1730971834522,-500.0,0.00030136,4]
[341544259,1730971834532,-1206.59,0.00030136,4]
[341544260,1730971834542,-500.0,0.00030136,4]
[341544261,1730971834552,-500.0,0.00030136,4]
[341544262,1730971834561,-193.640691,0.00030136,4]
[341544263,1730971834571,-500.0,0.00030136,4]
[341544264,1730971834582,-500.0,0.00030136,4]
[341544265,1730971834591,-500.0,0.00030136,4]
[341544266,1730971834601,-500.0,0.00030136,4]
[341544267,1730971834611,-500.0,0.00030136,4]
[341544268,1730971834621,-500.0,0.00030136,4]
[341544269,1730971834631,-500.0,0.00030136,4]
[341544270,1730971834640,-500.0,0.00030136,4]
[341544271,1730971834650,-500.0,0.00030136,4]
[341544272,1730971834660,-500.0,0.00030136,4]
[341544273,1730971834669,-320.04,0.00030136,4]
[341544274,1730971834679,-1010.04,0.00030136,4]
[341544275,1730971834689,-827.43,0.00030136,4]
[341544276,1730971834698,-867.8,0.00030136,4]
[341544277,1730971834707,-500.0,0.00030136,4]
[341544278,1730971834717,-828.06,0.00030136,4]
[341544279,1730971834727,-1624.25,0.00030136,4]
[341544280,1730971834736,-922.89,0.00030136,4]
[341544281,1730971834746,-500.0,0.00030136,4]
[341544282,1730971834756,-500.0,0.00030136,4]
[341544283,1730971834765,-500.0,0.00030136,4]
[341544284,1730971834775,-530.13,0.00030136,4]
[341544285,1730971834784,-500.0,0.00030136,4]
[341544286,1730971834793,-1227.32,0.00030136,4]
[341544287,1730971834803,-500.0,0.00030136,4]
[341544288,1730971834812,-404.83939308,0.00030136,4]
[341544289,1730971834822,-965.73,0.00030136,4]
[341544290,1730971834831,-500.0,0.00030136,4]
[341544291,1730971834841,-503.13,0.00030136,4]
[341544292,1730971834850,-157.950213,0.00030136,4]
[341544293,1730971834860,-500.0,0.00030136,4]
[341544294,1730971834869,-188.7526,0.00030136,4]
[341544295,1730971834879,-1166.4,0.00030136,4]
[341544296,1730971834888,-153.175801,0.00030136,4]
[341544297,1730971834897,-500.0,0.00030136,4]
[341544298,1730971834906,-500.0,0.00030136,4]
[341544299,1730971834916,-500.0,0.00030136,4]
[341544300,1730971834926,-500.0,0.00030136,4]
[341544301,1730971834935,-508.85,0.00030136,4]
[341544302,1730971834944,-633.65,0.00030136,4]
[341544303,1730971834954,-1089.5,0.00030136,4]
[341544304,1730971834964,-500.0,0.00030136,4]
[341544305,1730971834973,-172.70924044,0.00030136,4]
[341544306,1730971834983,-500.0,0.00030136,4]
[341544307,1730971834992,-838.65,0.00030136,4]
[341544308,1730971835002,-500.0,0.00030136,4]
[341544309,1730971835011,-750.46,0.00030136,4]
[341544310,1730971835020,-500.0,0.00030136,4]
[341544311,1730971835030,-500.0,0.00030136,4]
[341544312,1730971835039,-501.52058117,0.00030136,4]
[341544313,1730971835048,-590.87,0.00030136,4]
[341544314,1730971835057,-500.0,0.00030136,4]
[341544315,1730971835067,-500.0,0.00030136,4]
[341544316,1730971835076,-1485.68,0.00030136,4]
[341544317,1730971835086,-515.4,0.00030136,4]
[341544318,1730971835095,-500.0,0.00030136,4]
[341544319,1730971835104,-926.26,0.00030136,4]
[341544320,1730971835114,-500.0,0.00030136,4]
[341544321,1730971835123,-651.14,0.00030136,4]
[341544322,1730971835132,-547.68,0.00030136,4]
[341544323,1730971835140,-969.02,0.00030136,4]
[341544324,1730971835150,-500.0,0.00030136,4]
[341544325,1730971835159,-500.0,0.00030136,4]
[341544326,1730971835168,-532.98,0.00030136,4]
[341544327,1730971835177,-2419.65,0.00030136,4]
[341544328,1730971835186,-1156.03,0.00030136,4]
[341544329,1730971835196,-500.0,0.00030136,4]
[341544330,1730971835205,-500.0,0.00030136,4]
[341544331,1730971835214,-500.0,0.00030136,4]
[341544332,1730971835223,-523.52,0.00030136,4]
[341544333,1730971835232,-662.77,0.00030136,4]
[341544334,1730971835241,-1006.67,0.00030136,4]
[341544335,1730971835251,-500.0,0.00030136,4]
[341544336,1730971835260,-500.0,0.00030136,4]
[341544337,1730971835269,-500.0,0.00030136,4]
[341544338,1730971835278,-500.0,0.00030136,4]
[341544339,1730971835288,-511.96,0.00030136,4]
[341544340,1730971835297,-500.0,0.00030136,4]
[341544341,1730971835306,-802.8,0.00030136,4]
[341544342,1730971835315,-516.91,0.00030136,4]
[341544343,1730971835324,-500.0,0.00030136,4]
[341544344,1730971835334,-497.62505689,0.00030136,4]
[341544345,1730971835343,-500.0,0.00030136,4]
[341544346,1730971835353,-500.0,0.00030136,4]
[341544347,1730971835364,-500.0,0.00030136,4]
[341544348,1730971835374,-1000.0,0.00030136,15]
[341544349,1730971835384,-500.0,0.00030136,4]
[341544350,1730971835393,-1400.93,0.00030136,4]
[341544351,1730971835403,-500.0,0.00030136,4]
[341544352,1730971835412,-754.89,0.00030136,4]
[341544353,1730971835422,-500.0,0.00030136,4]
[341544354,1730971835431,-500.0,0.00030136,4]
[341544355,1730971835441,-500.0,0.00030136,4]
[341544356,1730971835450,-1014.38,0.00030136,4]
[341544357,1730971835459,-763.52,0.00030136,4]
[341544358,1730971835470,-500.0,0.00030136,4]
[341544359,1730971835480,-500.0,0.00030136,4]
[341544360,1730971835490,-500.0,0.00030136,4]
[341544361,1730971835506,-923.34,0.00030136,4]
[341544362,1730971835516,-500.0,0.00030136,4]
[341544363,1730971835525,-979.6,0.00030136,4]
[341544364,1730971835535,-500.0,0.00030136,4]
[341544365,1730971835544,-500.0,0.00030136,4]
[341544366,1730971835554,-500.0,0.00030136,4]
[341544367,1730971835564,-500.0,0.00030136,4]
[341544368,1730971835573,-500.0,0.00030136,4]
[341544369,1730971835582,-500.0,0.00030136,4]
[341544370,1730971835592,-806.36,0.00030136,4]
[341544371,1730971835601,-500.0,0.00030136,4]
[341544372,1730971835610,-500.0,0.00030136,4]
[341544373,1730971835619,-500.0,0.00030136,4]
[341544374,1730971835628,-650.18,0.00030136,4]
[341544375,1730971835637,-1216.91,0.00030136,4]
[341544376,1730971835646,-500.0,0.00030136,4]
[341544377,1730971835655,-500.0,0.00030136,4]
[341544378,1730971835665,-500.0,0.00030136,4]
[341544379,1730971835674,-500.0,0.00030136,4]
[341544380,1730971835683,-681.78,0.00030136,4]
[341544381,1730971835692,-1000.0,0.00030136,10]
[341544382,1730971835702,-500.0,0.00030136,4]
[341544383,1730971835711,-677.49,0.00030136,4]
[341544384,1730971835720,-500.0,0.00030136,4]
[341544385,1730971835730,-500.0,0.00030136,4]
[341544386,1730971835740,-762.06,0.00030136,4]
[341544387,1730971835749,-542.35,0.00030136,4]
[341544388,1730971835758,-500.0,0.00030136,4]
[341544389,1730971835768,-500.0,0.00030136,4]
[341544390,1730971835777,-500.0,0.00030136,4]
[341544391,1730971835787,-500.0,0.00030136,4]
[341544392,1730971835796,-500.0,0.00030136,4]
[341544393,1730971835806,-1299.93,0.00030136,4]
[341544394,1730971835815,-500.0,0.00030136,4]
[341544395,1730971835824,-863.42,0.00030136,4]
[341544396,1730971835833,-500.0,0.00030136,4]